bitfinex-derivatives/quotes_SOLF0:USTF0_20251125
["timestamp","ask_amount","ask_price","bid_price","bid_amount"]
[1764099605323,25.5,135.32,135.31,4.7692048]
[1764099605524,25.5,135.32,135.31,2.94]
[1764099605720,33.3141,135.32,135.3,0.053781]
[1764099606032,1.16,135.31,135.3,0.053781]
[1764099606625,6.48397001,135.31,135.3,0.053781]
[1764099606927,6.48397001,135.31,135.2,2.94]
[1764099606928,1.16,135.27,135.2,2.94]
[1764099607121,1.16,135.27,135.26,6.111e-05]
[1764099607122,7.72067791,135.27,135.26,6.111e-05]
[1764099607321,103.5617,135.25,135.2,2.94]
[1764099607528,1.16,135.23,135.16,2.94]
[1764099607730,110.13187791,135.24,135.18,2.98783667]
[1764099607731,0.05553931,135.21,135.18,2.98783667]
[1764099608125,1.21553931,135.21,135.18,2.98783667]
[1764099608429,0.05553931,135.21,135.18,2.98783667]
[1764099608933,6.66,135.2,135.18,2.98783667]
[1764099609327,0.05553931,135.21,135.18,2.98783667]
[1764099609635,25.55553931,135.21,135.18,2.98783667]
[1764099609935,6.66,135.2,135.18,2.98783667]
[1764099611722,6.66,135.2,135.18,0.04783667]
[1764099611929,1.16,135.19,135.18,0.04783667]
[1764099613040,6.66,135.2,135.18,0.04783667]
[1764099613333,7.82,135.2,135.18,0.04783667]
[1764099615233,1.16,135.19,135.18,0.04783667]
[1764099617534,1.16,135.17,135.12,2.97]
[1764099617740,26.66,135.16,135.12,2.97]
[1764099618433,25.5,135.16,135.12,2.97]
[1764099618626,0.05413806,135.15,135.14,2.97]
[1764099620034,0.05413806,135.15,135.13,0.04950225]
[1764099620236,0.05413806,135.15,135.13,3.01950225]
[1764099620841,6.71673806,135.15,135.13,3.01950225]
[1764099621042,0.05413806,135.15,135.13,3.01950225]
[1764099621942,1.16,135.21,135.14,2.97]
[1764099622143,25.5,135.2,135.19,4.80609499]
[1764099622327,25.5,135.2,135.19,2.97]
[1764099622532,25.5,135.2,135.12,2.97]
[1764099622941,0.04916638,135.17,135.15,3.02026661]
[1764099626546,2.8089608,135.17,135.15,3.02026661]
[1764099626854,1.21,135.16,135.15,0.05026661]
[1764099628436,1.21,135.16,135.09,2.97]
[1764099628740,26.73,135.15,135.09,2.97]
[1764099628945,1.21,135.14,135.09,2.97]
[1764099629342,0.05323763,135.13,135.1,0.05055829]
[1764099629639,7.83880912,135.13,135.1,0.05055829]
[1764099629835,1.21,135.12,135.1,0.05055829]
[1764099630240,7.83880912,135.13,135.1,3.02055829]
[1764099630539,1.26323763,135.13,135.1,3.02055829]
[1764099630741,0.05323763,135.13,135.1,3.02055829]
[1764099637732,0.05323763,135.13,135.1,9.68535829]
[1764099637949,0.05323763,135.13,135.11,2.97]
[1764099639949,0.05323763,135.13,135.11,9.6343]
[1764099640149,0.05323763,135.13,135.12,2.97]
[1764099640546,0.00323763,135.13,135.12,2.97]
[1764099640754,1.26,135.22,135.14,2.97]
[1764099640946,1.26,135.22,135.19,1.83114106]
[1764099641140,1.26,135.22,135.2,1.83114106]
[1764099641441,1.26,135.25,135.17,2.97]
[1764099641641,26.78,135.25,135.22,1.83104356]
[1764099641842,26.83229525,135.25,135.23,1.83104356]
[1764099642043,1.26,135.24,135.2,0.04687979]
[1764099642250,1.26,135.24,135.22,1.83098132]
[1764099643037,1.26,135.24,135.21,1.83098132]
[1764099646542,1.26,135.23,135.2,0.04687979]
[1764099646743,1.26,135.23,135.21,1.83313774]
[1764099648054,1.26,135.23,135.22,1.83313774]
[1764099650348,6.61963059,135.23,135.22,1.83313774]
[1764099651858,0.05229525,135.25,135.23,3.18]
[1764099652052,0.05229525,135.25,135.24,1.83736543]
[1764099652957,1.32229525,135.25,135.24,1.83736543]
[1764099657947,0.05229525,135.25,135.24,5.01736543]
[1764099658151,0.05229525,135.25,135.24,3.18]
[1764099664665,6.70969525,135.25,135.24,3.18]
[1764099665263,0.05229525,135.25,135.24,3.18]
[1764099667554,6.70969525,135.25,135.23,3.19129624]
[1764099667857,6.70969525,135.25,135.23,0.05129624]
[1764099667858,1.31229525,135.25,135.23,0.05129624]
[1764099668254,6.6579,135.24,135.23,0.05129624]
[1764099668459,0.05229525,135.25,135.23,3.19129624]
[1764099668658,5.62842498,135.33,135.24,3.14]
[1764099668861,31.12842498,135.33,135.3,3.14]
[1764099669067,31.12842498,135.33,135.31,1.83042587]
[1764099669266,31.12842498,135.33,135.3,3.14]
[1764099669456,26.82,135.33,135.31,1.82914667]
[1764099669758,1.32,135.32,135.31,1.87609281]
[1764099669964,1.32,135.32,135.21,103.5886]
[1764099669965,1.32,135.31,135.24,3.14]
[1764099670165,5.62842498,135.29,135.24,3.14]
[1764099670369,125.7076,135.35,135.24,3.14]
[1764099670370,1.32,135.35,135.24,3.14]
[1764099670666,25.5,135.33,135.27,3.14]
[1764099670860,0.00462019,135.31,135.29,3.19094905]
[1764099671059,25.5,135.33,135.29,3.19094905]
[1764099671658,28.56,135.33,135.29,3.19094905]
[1764099672065,0.04840508,135.32,135.29,3.19094905]
[1764099678162,0.04840508,135.32,135.3,3.07]
[1764099679071,6.6517,135.37,135.3,3.07]
[1764099679373,3.15,135.37,135.36,1.82306402]
[1764099679568,3.15,135.37,135.32,3.07]
[1764099679871,32.93842498,135.38,135.36,1.82240203]
[1764099680072,32.98561015,135.38,135.36,1.87476788]
[1764099680275,32.98561015,135.38,135.36,0.05236585]
[1764099680565,32.98561015,135.38,135.36,1.87480366]
[1764099680770,32.98561015,135.38,135.36,0.05236585]
[1764099680963,32.98561015,135.38,135.36,1.87480366]
[1764099680964,3.19718517,135.38,135.36,1.87480366]
[1764099681165,3.19718517,135.38,135.36,0.05236585]
[1764099681675,7.09842498,135.37,135.36,0.05236585]
[1764099682376,7.09842498,135.37,135.31,3.07]
[1764099682568,7.09842498,135.37,135.36,1.82263178]
[1764099682774,2.79,135.36,135.31,3.07]
[1764099683278,2.84121958,135.35,135.32,3.12549642]
[1764099683668,7.14964456,135.35,135.34,1.82326117]
[1764099683868,7.14964456,135.35,135.32,3.12549642]
[1764099684073,4.35964456,135.35,135.32,3.12549642]
[1764099684774,4.35964456,135.35,135.33,3.07]
[1764099685176,0.05121958,135.35,135.33,3.07]
[1764099685668,0.05121958,135.35,135.33,9.7235]
[1764099685976,0.05121958,135.35,135.34,3.07]
[1764099687077,9.8585402,135.42,135.34,3.07]
[1764099687273,7.09842498,135.42,135.4,1.82349692]
[1764099687472,12.6485402,135.43,135.4,4.89349692]
[1764099687674,31.03011522,135.44,135.42,3.07]
[1764099688166,25.53669612,135.44,135.42,3.11686132]
[1764099688478,25.53669612,135.44,135.42,0.04686132]
[1764099688783,25.53669612,135.44,135.43,1.82146433]
[1764099689775,25.53669612,135.44,135.43,4.89146433]
[1764099689973,25.53669612,135.44,135.42,3.11686132]
[1764099690173,25.53669612,135.44,135.43,1.82059555]
[1764099690372,25.53669612,135.44,135.43,4.89059555]
[1764099690873,25.53669612,135.44,135.43,3.07]
[1764099691170,0.05669612,135.44,135.43,3.07]
[1764099693678,7.15842498,135.49,135.45,3.07]
[1764099693977,2.85,135.48,135.45,3.07]
[1764099694173,25.46,135.5,135.45,3.07]
[1764099694383,2.85,135.53,135.5,3.07]
[1764099694575,0.05209801,135.53,135.51,4.88548565]
[1764099694780,0.05209801,135.53,135.51,3.07]
[1764099694980,0.05209801,135.53,135.52,1.81520294]
[1764099695279,0.05209801,135.53,135.51,3.07]
[1764099695672,0.05209801,135.53,135.5,0.04782567]
[1764099695673,7.21052299,135.53,135.52,1.81353117]
[1764099696277,0.05209801,135.53,135.52,4.88353117]
[1764099696467,0.05209801,135.53,135.52,3.07]
[1764099696666,2.90209801,135.53,135.5,0.04782567]
[1764099696883,2.90209801,135.53,135.5,3.11782567]
[1764099697070,0.05209801,135.53,135.5,3.11782567]
[1764099697866,2.90209801,135.53,135.52,1.81057952]
[1764099698378,2.90209801,135.53,135.5,0.04782567]
[1764099698379,2.85,135.52,135.5,0.04782567]
[1764099700278,0.05209801,135.53,135.5,0.04782567]
[1764099700477,0.05209801,135.53,135.52,1.80925644]
[1764099700678,1.09209801,135.53,135.52,1.80925644]
[1764099700875,1.09209801,135.53,135.5,0.04782567]
[1764099701582,1.09209801,135.53,135.51,1.80948598]
[1764099701896,1.09209801,135.53,135.5,0.04782567]
[1764099702083,1.04,135.52,135.5,0.04782567]
[1764099702579,26.5,135.51,135.5,0.04782567]
[1764099703777,0.05209801,135.53,135.5,3.11782567]
[1764099703987,1.09209801,135.53,135.51,1.80963579]
[1764099704184,1.09209801,135.53,135.5,0.04782567]
[1764099704485,0.05209801,135.53,135.51,4.87957177]
[1764099704784,0.05209801,135.53,135.52,1.80933692]
[1764099704980,1.09209801,135.53,135.52,1.80933692]
[1764099705175,0.05209801,135.53,135.52,4.87933692]
[1764099705382,0.05209801,135.53,135.52,3.07]
[1764099706077,1.28420392,135.57,135.52,3.07]
[1764099706388,1.04,135.56,135.54,1.80861121]
[1764099706989,1.08736394,135.56,135.54,1.86391641]
[1764099707383,1.08736394,135.56,135.54,0.0553052]
[1764099707584,0.04736394,135.56,135.54,5.013428]
[1764099707789,0.04736394,135.56,135.55,3.15]
[1764099708383,5.55858775,135.59,135.55,3.15]
[1764099708586,5.55858775,135.59,135.56,1.80768394]
[1764099708893,5.55858775,135.59,135.56,4.95768394]
[1764099709093,39.95300214,135.6,135.56,3.15]
[1764099709294,0.05101959,135.59,135.56,3.15]
[1764099709891,7.72191959,135.59,135.56,3.15]
[1764099710191,1.08101959,135.59,135.56,3.15]
[1764099710690,6.63960734,135.59,135.56,3.15]
[1764099710882,1.08101959,135.59,135.58,1.80757763]
[1764099711087,0.05101959,135.59,135.58,1.80757763]
[1764099711991,1.08101959,135.59,135.57,0.05008229]
[1764099712295,7.72181959,135.59,135.57,0.05008229]
[1764099712587,6.69181959,135.59,135.57,3.20008229]
[1764099712789,1.03,135.58,135.57,0.05008229]
[1764099713796,13.28040734,135.59,135.57,0.05008229]
[1764099713996,7.72181959,135.59,135.57,0.05008229]
[1764099714901,6.69181959,135.59,135.57,0.05008229]
[1764099715097,6.69181959,135.59,135.58,1.80879603]
[1764099715900,7.72181959,135.59,135.58,1.80879603]
[1764099716210,7.72181959,135.59,135.57,0.05008229]
[1764099716401,13.28553645,135.59,135.57,0.05008229]
[1764099716602,7.72181959,135.59,135.57,0.05008229]
[1764099716803,7.72181959,135.59,135.58,1.80927986]
[1764099717400,0.05101959,135.59,135.58,4.95927986]
[1764099717706,0.05101959,135.59,135.57,3.20008229]
[1764099717908,0.05101959,135.59,135.58,1.80938893]
[1764099720899,1.08101959,135.59,135.58,1.80938893]
[1764099721309,6.6412,135.58,135.57,0.05008229]
[1764099721504,10.41387459,135.58,135.57,0.05008229]
[1764099722312,0.05101959,135.59,135.57,3.03008229]
[1764099722511,1.08101959,135.59,135.57,0.05008229]
[1764099722906,2.74267459,135.58,135.57,0.05008229]
[1764099724014,7.72181959,135.59,135.57,0.05008229]
[1764099724215,2.74267459,135.58,135.57,0.05008229]
[1764099725118,10.41387459,135.58,135.57,0.05008229]
[1764099725319,9.38387459,135.58,135.57,0.05008229]
[1764099726117,1.03,135.57,135.51,2.98]
[1764099726306,2.74267459,135.56,135.51,2.98]
[1764099726510,9.35556758,135.58,135.53,2.98]
[1764099726716,3.77267459,135.58,135.57,1.81454427]
[1764099727314,16.00305816,135.58,135.57,1.81454427]
[1764099727518,3.77267459,135.58,135.56,0.04850425]
[1764099727715,1.03,135.57,135.56,0.04850425]
[1764099728319,7.6717,135.57,135.56,0.04850425]
[1764099729213,6.6417,135.57,135.56,0.04850425]
[1764099729412,1.08410819,135.59,135.56,3.02850425]
[1764099729618,0.05410819,135.59,135.58,1.81930981]
[1764099729921,0.05410819,135.59,135.58,2.98]
[1764099730910,0.05410819,135.59,135.56,0.04850425]
[1764099731220,0.05410819,135.59,135.56,3.02850425]
[1764099731416,2.79678278,135.59,135.56,3.02850425]
[1764099731617,9.43758278,135.59,135.56,3.02850425]
[1764099731817,10.46758278,135.59,135.56,3.02850425]
[1764099732220,5.62555974,135.58,135.56,3.02850425]
[1764099732419,10.46758278,135.59,135.56,3.02850425]
[1764099732619,5.62596312,135.58,135.56,3.02850425]
[1764099732922,9.3970521,135.57,135.56,0.04850425]
[1764099733316,7.6723,135.56,135.48,2.98]
[1764099733514,2.74267459,135.54,135.48,2.98]
[1764099734223,2.74267459,135.54,135.5,2.98]
[1764099734422,0.04711656,135.53,135.51,3.03521876]
[1764099734724,2.74267459,135.52,135.51,0.05006566]
[1764099737023,6.69091656,135.53,135.51,3.03006566]
[1764099738123,0.04711656,135.53,135.51,3.03006566]
[1764099739030,0.04711656,135.53,135.51,9.67466566]
[1764099739228,0.04711656,135.53,135.52,2.94]
[1764099741524,25.42,135.55,135.54,2.94]
[1764099741731,2.74267459,135.58,135.54,2.94]
[1764099741932,5.65081865,135.57,135.54,2.94]
[1764099742126,2.74267459,135.58,135.54,2.94]
[1764099742432,0.0517804,135.57,135.55,2.98663329]
[1764099742937,0.0517804,135.57,135.56,9.5822]
[1764099744529,0.0517804,135.57,135.55,0.04663329]
[1764099744722,0.0517804,135.57,135.55,2.98663329]
[1764099745827,1.0917804,135.57,135.55,0.04663329]
[1764099746033,0.0517804,135.57,135.55,9.62933329]
[1764099746233,0.0517804,135.57,135.56,2.94]
[1764099747237,0.0517804,135.57,135.56,9.5822]
[1764099751241,0.0517804,135.57,135.56,6.6422]
[1764099751430,5.41639928,135.57,135.55,2.98663329]
[1764099751630,2.79445499,135.57,135.55,0.04663329]
[1764099751841,5.36473894,135.56,135.55,0.04663329]
[1764099752338,6.40473894,135.56,135.55,0.04663329]
[1764099752539,12.06877645,135.56,135.55,0.04663329]
[1764099753136,9.73504884,135.61,135.58,6.6408]
[1764099753334,2.99,135.6,135.56,0.65]
[1764099754135,0.05327818,135.59,135.57,0.70581374]
[1764099754846,5.78595277,135.59,135.57,0.05581374]
[1764099755033,2.99,135.58,135.57,0.05581374]
[1764099756436,2.99,135.57,135.5,0.65]
[1764099756641,2.99,135.54,135.5,0.65]
[1764099757245,0.05140947,135.53,135.51,0.05249236]
[1764099757549,0.05140947,135.53,135.51,0.70249236]
[1764099757847,0.05140947,135.53,135.51,0.05249236]
[1764099758941,3.04140947,135.53,135.51,0.05249236]
[1764099762645,3.04140947,135.53,135.52,1.83813307]
[1764099762843,28.46140947,135.53,135.52,1.83813307]
[1764099763642,2.99,135.52,135.51,0.05249236]
[1764099764046,0.05140947,135.53,135.51,0.70249236]
[1764099764837,2.99,135.59,135.52,0.65]
[1764099765036,2.99,135.61,135.58,2.48668808]
[1764099765241,10.90701724,135.6,135.59,1.83668808]
[1764099765452,10.90701724,135.6,135.55,0.65]
[1764099765660,2.99,135.61,135.59,1.83658749]
[1764099765856,2.99,135.59,135.55,9.1324]
[1764099766153,2.99,135.59,135.56,0.05039524]
[1764099766447,2.99,135.57,135.56,0.05039524]
[1764099766653,8.27471347,135.57,135.56,0.05039524]
[1764099766851,2.99,135.57,135.56,0.05039524]
[1764099767152,13.91163416,135.57,135.56,0.05039524]
[1764099767547,8.27460813,135.57,135.56,0.05039524]
[1764099768053,13.91184996,135.57,135.56,0.05039524]
[1764099770054,8.62724183,135.57,135.56,0.05039524]
[1764099771643,2.99,135.57,135.56,0.05039524]
[1764099773957,0.05073128,135.58,135.56,2.52039524]
[1764099774257,0.05073128,135.58,135.56,0.05039524]
[1764099774654,3.06073128,135.58,135.56,0.05039524]
[1764099776857,0.05073128,135.58,135.56,0.05039524]
[1764099777059,0.05073128,135.58,135.57,2.47]
[1764099777252,0.05073128,135.58,135.56,0.05039524]
[1764099777444,0.05073128,135.58,135.56,2.52039524]
[1764099779969,0.05073128,135.58,135.57,2.49]
[1764099781466,25.42,135.63,135.6,2.49]
[1764099781657,3.1,135.64,135.62,1.83582501]
[1764099781852,3.1,135.64,135.63,1.83582501]
[1764099782057,3.1,135.63,135.6,2.49]
[1764099782252,3.1,135.63,135.59,2.49]
[1764099782455,3.1,135.63,135.62,1.83526122]
[1764099782653,8.73731184,135.63,135.6,2.54410992]
[1764099782862,3.1,135.63,135.6,2.54410992]
[1764099783865,0.04915193,135.64,135.63,2.49]
[1764099784766,3.14915193,135.64,135.6,2.54410992]
[1764099785265,0.04915193,135.64,135.63,2.49]
[1764099785477,3.1,135.68,135.63,2.49]
[1764099785771,3.1,135.68,135.67,1.83201297]
[1764099787477,5.67587411,135.69,135.67,1.83201297]
[1764099787672,8.77587411,135.69,135.67,1.83201297]
[1764099787866,3.1,135.68,135.67,1.83201297]
[1764099788066,3.1,135.68,135.66,0.05099719]
[1764099788366,3.1,135.68,135.67,1.82903913]
[1764099789774,5.67261997,135.69,135.66,2.54099719]
[1764099790077,3.15033626,135.69,135.68,1.82793668]
[1764099790273,0.05033626,135.69,135.68,4.31793668]
[1764099790578,0.05033626,135.69,135.68,2.49]
[1764099792661,0.05033626,135.69,135.66,2.54099719]
[1764099792865,0.05033626,135.69,135.68,4.31476057]
[1764099793061,0.05033626,135.69,135.68,2.49]
[1764099794276,3.15033626,135.69,135.66,2.54099719]
[1764099794575,3.15033626,135.69,135.68,1.82300286]
[1764099796782,3.15033626,135.69,135.66,2.54099719]
[1764099797572,3.0,135.67,135.66,0.05099719]
[1764099797970,0.05033626,135.69,135.66,2.53099719]
[1764099798570,0.05033626,135.69,135.67,2.48]
[1764099800177,0.05033626,135.69,135.68,2.48]
[1764099800966,0.05033626,135.69,135.66,2.53099719]
[1764099801487,3.05033626,135.69,135.66,0.05099719]
[1764099801785,3.05033626,135.69,135.68,1.81897596]
[1764099801970,0.05033626,135.69,135.68,1.81897596]
[1764099802171,3.05033626,135.69,135.68,1.81897596]
[1764099802372,3.05033626,135.69,135.66,0.05099719]
[1764099802980,3.05033626,135.69,135.66,2.53099719]
[1764099803483,0.05033626,135.69,135.66,2.53099719]
[1764099803670,0.05033626,135.69,135.67,2.48]
[1764099804385,0.05033626,135.69,135.68,2.48]
[1764099805275,1.35736412,135.71,135.7,2.43]
[1764099806270,0.04873038,135.72,135.71,6.6349]
[1764099806476,0.04685943,135.73,135.72,1.08]
[1764099806778,0.05194265,135.74,135.72,1.08]
[1764099806978,0.05194265,135.74,135.73,1.08]
[1764099807282,112.02780354,135.85,135.74,1.02]
[1764099807283,3.0,135.83,135.74,1.02]
[1764099807485,3.0,135.81,135.8,1.81619159]
[1764099807682,8.69367834,135.81,135.8,1.81619159]
[1764099807879,5.69367834,135.81,135.8,1.81619159]
[1764099808186,3.0,135.82,135.8,1.81619159]
[1764099808683,3.0,135.8,135.73,1.02]
[1764099808982,8.69104244,135.79,135.78,1.81571465]
[1764099809182,8.68950547,135.79,135.78,1.81571465]
[1764099809388,3.0,135.78,135.77,1.81571465]
[1764099809579,3.0,135.77,135.76,0.04938777]
[1764099811187,0.04760199,135.79,135.76,1.06938777]
[1764099811576,0.04760199,135.79,135.76,7.70158777]
[1764099811780,0.04760199,135.79,135.77,1.02]
[1764099812282,3.04760199,135.79,135.76,0.04938777]
[1764099812478,3.04760199,135.79,135.78,1.81372775]
[1764099812782,8.73199219,135.79,135.78,1.81372775]
[1764099812990,3.0,135.78,135.77,1.81372775]
[1764099813180,8.6843902,135.78,135.77,1.81352101]
[1764099813381,3.0,135.78,135.76,0.04938777]
[1764099813580,3.0,135.78,135.77,1.81387392]
[1764099813781,8.68445149,135.78,135.77,1.81387392]
[1764099814782,3.0,135.77,135.7,1.02]
[1764099814989,8.68445149,135.76,135.7,1.02]
[1764099815187,3.0,135.76,135.67,2.83]
[1764099815387,3.0,135.74,135.67,2.83]
[1764099815585,3.0,135.72,135.67,2.83]
[1764099815887,3.05478186,135.71,135.68,0.04844297]
[1764099816879,3.05478186,135.71,135.7,1.81647825]
[1764099817087,3.0,135.7,135.68,0.04844297]
[1764099818194,5.69418713,135.69,135.68,0.04844297]
[1764099818386,3.0,135.69,135.68,0.04844297]
[1764099819091,8.69505233,135.69,135.68,0.04844297]
[1764099819291,3.0,135.69,135.68,0.04844297]
[1764099819690,8.69751725,135.69,135.68,0.04844297]
[1764099823197,5.69751725,135.69,135.68,0.04844297]
[1764099823791,8.69751725,135.69,135.68,0.04844297]
[1764099824785,5.69751725,135.69,135.68,0.04844297]
[1764099824987,0.05478186,135.71,135.68,3.03844297]
[1764099825199,5.71350102,135.7,135.68,3.03844297]
[1764099825395,0.05478186,135.71,135.68,3.03844297]
[1764099826283,0.05478186,135.71,135.68,9.67464297]
[1764099826688,0.05478186,135.71,135.69,2.99]
[1764099826889,0.05478186,135.71,135.7,2.99]
[1764099827090,5.77301027,135.71,135.7,2.99]
[1764099828993,5.77301027,135.71,135.69,6.6357]
[1764099828994,5.77301027,135.71,135.68,0.04844297]
[1764099829198,8.74285847,135.7,135.68,0.04844297]
[1764099829396,3.02,135.7,135.68,0.04844297]
[1764099829897,5.72248423,135.69,135.68,0.04844297]
[1764099831403,8.74248423,135.69,135.68,0.04844297]
[1764099835402,3.02,135.68,135.64,6.638]
[1764099835602,3.02,135.68,135.64,9.788]
[1764099836009,3.02,135.68,135.64,6.638]
[1764099836303,3.02,135.66,135.65,0.0558023]
[1764099837102,0.055422,135.67,135.65,6.6936023]
[1764099837404,3.075422,135.67,135.65,6.6936023]
[1764099839111,3.075422,135.67,135.65,0.0558023]
[1764099840504,0.055422,135.67,135.65,3.2058023]
[1764099841502,28.34,135.73,135.66,3.15]
[1764099841701,8.66726406,135.72,135.71,1.82865612]
[1764099842407,5.72726406,135.72,135.68,3.15]
[1764099842612,0.05219522,135.71,135.69,3.19906798]
[1764099842916,2.94,135.78,135.71,3.15]
[1764099843103,5.72864132,135.77,135.75,4.97824649]
[1764099843301,25.4,135.79,135.78,3.15]
[1764099843509,5.72922025,135.79,135.78,3.15]
[1764099843708,5.72922025,135.79,135.75,3.15]
[1764099844011,5.72757555,135.78,135.75,3.15]
[1764099844210,2.98763458,135.78,135.75,0.04686279]
[1764099844400,2.98763458,135.78,135.77,1.82729206]
[1764099844712,8.71172551,135.78,135.77,1.82729206]
[1764099845601,2.94,135.77,135.75,0.04686279]
[1764099845804,8.66409093,135.76,135.75,0.04686279]
[1764099846209,2.94,135.75,135.69,3.15]
[1764099846411,2.94,135.73,135.66,3.15]
[1764099846612,5.72409093,135.72,135.66,3.15]
[1764099846813,2.94,135.7,135.66,3.15]
[1764099847214,2.94,135.7,135.6,135.2077695]
[1764099847215,0.04661304,135.69,135.62,3.15]
[1764099847419,2.94,135.68,135.64,0.05361178]
[1764099847715,2.94,135.68,135.64,3.20361178]
[1764099848302,0.04661304,135.69,135.64,3.20361178]
[1764099848507,0.04661304,135.69,135.66,3.15]
[1764099848913,0.04661304,135.69,135.68,3.15]
[1764099863628,25.4,135.73,135.7,2.9]
[1764099863823,5.7509903,135.72,135.7,2.9]
[1764099864031,28.48,135.73,135.7,2.9]
[1764099864221,5.74991129,135.72,135.7,2.9]
[1764099864413,28.48,135.73,135.7,2.9]
[1764099864726,5.75202933,135.72,135.71,6.6346]
[1764099865818,3.08,135.71,135.7,0.04916593]
[1764099866027,8.83202933,135.71,135.7,0.04916593]
[1764099867123,5.75202933,135.71,135.7,9.58456593]
[1764099867326,5.75202933,135.71,135.7,2.94916593]
[1764099868718,25.44788433,135.73,135.7,2.94916593]
[1764099868919,5.64134523,135.72,135.7,2.94916593]
[1764099869118,25.44788433,135.73,135.7,2.94916593]
[1764099869324,5.64168471,135.72,135.7,2.94916593]
[1764099869624,25.44788433,135.73,135.7,2.94916593]
[1764099869824,5.64188074,135.72,135.7,2.94916593]
[1764099870027,25.44788433,135.73,135.7,2.94916593]
[1764099870218,5.64087636,135.72,135.7,2.94916593]
[1764099870421,25.44788433,135.73,135.7,2.94916593]
[1764099870734,3.08,135.71,135.7,0.04916593]
[1764099870925,28.52788433,135.73,135.7,0.04916593]
[1764099871126,5.63768143,135.72,135.7,0.04916593]
[1764099871326,28.52788433,135.73,135.7,9.58446593]
[1764099871527,28.52788433,135.73,135.7,2.94916593]
[1764099871722,25.44788433,135.73,135.7,2.94916593]
[1764099872124,28.52788433,135.73,135.71,6.6348]
[1764099873025,5.63688148,135.72,135.7,2.94916593]
[1764099873229,28.52788433,135.73,135.7,2.94916593]
[1764099873727,28.52788433,135.73,135.71,6.6348]
[1764099873920,5.63674562,135.72,135.71,6.6348]
[1764099875332,28.52788433,135.73,135.71,6.6348]
[1764099876522,5.6366637,135.72,135.71,6.6348]
[1764099876831,28.52788433,135.73,135.71,6.6348]
[1764099877335,0.04788433,135.73,135.72,2.9]
[1764099877522,5.68470709,135.73,135.72,2.9]
[1764099878433,5.68470709,135.73,135.72,9.5344]
[1764099878929,8.76470709,135.73,135.72,6.6344]
[1764099880131,5.68470709,135.73,135.72,6.6344]
[1764099880320,3.08,135.72,135.7,0.04916593]
[1764099880835,3.08,135.72,135.71,6.6349]
[1764099881028,8.71913314,135.72,135.71,6.6349]
[1764099881828,8.71913314,135.72,135.7,6.68426593]
[1764099881829,3.08,135.71,135.7,6.68426593]
[1764099882135,8.71913314,135.71,135.7,6.68426593]
[1764099882735,5.63913314,135.71,135.7,6.68426593]
[1764099883834,8.71913314,135.71,135.7,0.04916593]
[1764099885742,5.63913314,135.71,135.7,2.94916593]
[1764099886032,0.04788433,135.73,135.72,2.9]
[1764099886233,5.69817657,135.73,135.72,2.9]
[1764099886937,5.69817657,135.73,135.72,9.5344]
[1764099894037,7.657e-05,135.73,135.72,9.5344]
[1764099894246,3.08,135.76,135.75,6.6329]
[1764099894432,8.72896238,135.76,135.75,6.6329]
[1764099895043,5.64896238,135.76,135.75,9.7029]
[1764099895439,25.38,135.78,135.77,6.6319]
[1764099895440,28.33,135.78,135.77,6.6319]
[1764099895635,8.91920354,135.82,135.77,6.6319]
[1764099895636,2.95,135.8,135.77,3.07]
[1764099895836,2.95,135.8,135.79,1.83641838]
[1764099896138,8.59954949,135.8,135.79,1.83641838]
[1764099897041,2.95,135.79,135.77,0.0529733]
[1764099898336,2.95,135.79,135.77,6.6848733]
[1764099898942,2.95,135.79,135.77,9.7548733]
[1764099899742,2.95,135.79,135.77,6.6848733]
[1764099900346,2.95,135.79,135.77,0.0529733]
[1764099901053,2.87,135.77,135.7,2.95]
[1764099901344,2.87,135.77,135.76,1.83382618]
[1764099901544,8.50833255,135.77,135.76,1.83382618]
[1764099901751,2.87,135.77,135.72,2.95]
[1764099901951,0.04788088,135.76,135.74,2.95]
[1764099902643,2.91788088,135.76,135.73,0.04924781]
[1764099903239,2.91788088,135.76,135.75,1.83381544]
[1764099903446,2.87,135.75,135.73,0.04924781]
[1764099904148,9.5031,135.75,135.73,0.04924781]
[1764099904347,2.87,135.74,135.73,0.04924781]